Workbook

Sheet Template
A1: CHAPTER 5 TEMPLATE--JUST TO SAVE YOU SOME TYPING
A2: Sales growth
A3: Current assets/Sales
A4: Current liabilities/Sales
A5: Net fixed assets/Sales
A6: Costs of goods sold/Sales
A7: Depreciation rate
A8: Interest rate on debt
A9: Interest paid on cash & marketable securities
A10: Tax rate
A11: Dividend payout ratio
A13: Year | B13: 0 | C13: 1 | D13: 2 | E13: 3 | F13: 4 | G13: 5
A14: Income statement
A15: Sales
A16: Costs of goods sold
A17: Interest payments on debt
A18: Interest earned on cash & marketable securities
A19: Depreciation
A20: Profit before tax
A21: Taxes
A22: Profit after tax
A23: Dividends
A24: Retained earnings
A26: Balance sheet | B26: 0 | C26: 1 | D26: 2 | E26: 3 | F26: 4 | G26: 5
A27: Cash and marketable securities
A28: Current assets
A29: Fixed assets
A30: Fixed assets at cost
A31: Accumulated depreciation
A32: Net fixed assets
A33: Total assets
A35: Current liabilities
A36: Debt
A37: Stock
A38: Accumulated retained earnings
A39: Total liabilities and equity
A42: Year | B42: 0 | C42: 1 | D42: 2 | E42: 3 | F42: 4 | G42: 5
A43: Free Cash Flow
A44: PAT
A45: Add back depreciation
A46: Minus NWC
A47: Minus increase in CA
A48: Add back increase in CL
A49: Subtract CAPEX
A50: Add back net interest after taxes
A51: Free Cash Flow
A54: WACC
A55: Long-term FCF growth
A57: Year | B57: 0 | C57: 1 | D57: 2 | E57: 3 | F57: 4 | G57: 5
A58: FCF
A59: Terminal value
A60: Total
A62: Enterprise value: PV of FCFs and terminal value
A63: Add back initial cash
A64: Asset value
A65: Subtract year 0 debt
A66: Imputed equity value

Sheet EX1
A1: CHAPTER 5 TEMPLATE--JUST TO SAVE YOU SOME TYPING
A2: Sales growth | B2: 0.1
A3: Current assets/Sales | B3: 0.15
A4: Current liabilities/Sales | B4: 0.08
A5: Net fixed assets/Sales | B5: 0.77
A6: Costs of goods sold/Sales | B6: 0.5
A7: Depreciation rate | B7: 0.1
A8: Interest rate on debt | B8: 0.1
A9: Interest earned on cash & marketable securities | B9: 0.08
A10: Tax rate | B10: 0.4
A11: Dividend payout ratio | B11: 0.4
A13: Year | B13: 0 | C13: 1 | D13: 2 | E13: 3 | F13: 4 | G13: 5
A14: Income statement
A15: Sales | B15: 1000 | C15: =B15*(1+$B$2) -> 1100 | D15: =C15*(1+$B$2) -> 1210 | E15: 1331 | F15: 1464.1 | G15: 1610.51 | H15: =getformula(G15) -> <-- =F15*(1+$B$2)
A16: Costs of goods sold | B16: =-B15*$B$6 -> -500 | C16: =-C15*$B$6 -> -550 | D16: -605 | E16: -665.5 | F16: -732.05 | G16: -805.255 | H16: =getformula(G16) -> <-- =-G15*$B$6
A17: Interest payments on debt | B17: -32 | C17: =-$B$8*(C36+B36)/2 -> -32 | D17: =-$B$8*(D36+C36)/2 -> -32 | E17: -32 | F17: -32 | G17: -32 | H17: <-- =-$B$8*(G36+F36)/2
A18: Interest earned on cash & marketable securities | B18: 6 | C18: =$B$9*(C27+B27)/2 -> 8.947795625 | D18: =$B$9*(D27+C27)/2 -> 14.27670286 | E18: 20.08091336 | F18: 26.37673126 | G18: 33.17806883 | H18: <-- =$B$9*(G27+F27)/2
A19: Depreciation | B19: -100 | C19: =-$B$7*(C30+B30)/2 -> -116.6842105 | D19: =-$B$7*(D30+C30)/2 -> -137.4772853 | E19: -161.3101575 | F19: -188.5879109 | G19: -219.7667804 | H19: <-- =-$B$7*(G30+F30)/2
A20: Profit before tax | B20: =SUM(B15:B19) -> 374 | C20: =SUM(C15:C19) -> 410.2635851 | D20: 449.7994175 | E20: 492.2707559 | F20: 537.8388204 | G20: 586.6662884 | H20: <-- =SUM(G15:G19)
A21: Taxes | B21: =-B20*$B$10 -> -149.6 | C21: =-C20*$B$10 -> -164.105434 | D21: -179.919767 | E21: -196.9083024 | F21: -215.1355282 | G21: -234.6665154 | H21: <-- =-G20*$B$10
A22: Profit after tax | B22: =SUM(B20:B21) -> 224.4 | C22: =SUM(C20:C21) -> 246.1581511 | D22: 269.8796505 | E22: 295.3624535 | F22: 322.7032922 | G22: 351.999773 | H22: <-- =SUM(G20:G21)
A23: Dividends | B23: =-$B$11*B22 -> -89.76 | C23: =-$B$11*C22 -> -98.46326042 | D23: -107.9518602 | E23: -118.1449814 | F23: -129.0813169 | G23: -140.7999092 | H23: <-- =-$B$11*G22
A24: Retained earnings | B24: =SUM(B22:B23) -> 134.64 | C24: =SUM(C22:C23) -> 147.6948906 | D24: 161.9277903 | E24: 177.2174721 | F24: 193.6219753 | G24: 211.1998638 | H24: <-- =SUM(G22:G23)
A26: Balance sheet | B26: 0 | C26: 1 | D26: 2 | E26: 3 | F26: 4 | G26: 5
A27: Cash and marketable securities | B27: 80 | C27: =C39-C28-C32 -> 143.6948906 | D27: =D39-D28-D32 -> 213.222681 | E27: 288.8001531 | F27: 370.6181284 | G27: 458.8335922 | H27: =getformula(G27) -> <-- =G39-G28-G32
A28: Current assets | B28: =$B$3*B15 -> 150 | C28: =$B$3*C15 -> 165 | D28: 181.5 | E28: 199.65 | F28: 219.615 | G28: 241.5765 | H28: <-- =$B$3*G15
A29: Fixed assets | H29: <--
A30: Fixed assets at cost | B30: =B32-B31 -> 1070 | C30: =C32-C31 -> 1263.684211 | D30: 1485.861496 | E30: 1740.341653 | F30: 2031.416564 | G30: 2363.919045 | H30: <-- =G32-G31
A31: Accumulated depreciation | B31: -300 | C31: =B31+C19 -> -416.6842105 | D31: =C31+D19 -> -554.1614958 | E31: -715.4716533 | F31: -904.0595642 | G31: -1123.826345 | H31: <-- =F31+G19
A32: Net fixed assets | B32: =$B$5*B15 -> 770 | C32: =$B$5*C15 -> 847 | D32: =$B$5*D15 -> 931.7 | E32: 1024.87 | F32: 1127.357 | G32: 1240.0927 | H32: <-- =$B$5*G15
A33: Total assets | B33: =B27+B28+B32 -> 1000 | C33: =C27+C28+C32 -> 1155.694891 | D33: 1326.422681 | E33: 1513.320153 | F33: 1717.590128 | G33: 1940.502792 | H33: <-- =G27+G28+G32
A35: Current liabilities | B35: =$B$4*B15 -> 80 | C35: =$B$4*C15 -> 88 | D35: 96.8 | E35: 106.48 | F35: 117.128 | G35: 128.8408 | H35: <-- =$B$4*G15
A36: Debt | B36: 320 | C36: 320 | D36: 320 | E36: 320 | F36: 320 | G36: 320 | H36: <-- 320
A37: Stock | B37: 450 | C37: 450 | D37: 450 | E37: 450 | F37: 450 | G37: 450 | H37: <-- 450
A38: Accumulated retained earnings | B38: 150 | C38: =B38+C24 -> 297.6948906 | D38: =C38+D24 -> 459.622681 | E38: 636.8401531 | F38: 830.4621284 | G38: 1041.661992 | H38: <-- =F38+G24
A39: Total liabilities and equity | B39: =SUM(B35:B38) -> 1000 | C39: =SUM(C35:C38) -> 1155.694891 | D39: 1326.422681 | E39: 1513.320153 | F39: 1717.590128 | G39: 1940.502792 | H39: <-- =SUM(G35:G38)

Sheet EX2
A1: CHAPTER 5 TEMPLATE--JUST TO SAVE YOU SOME TYPING
A2: Sales growth | B2: 0.1
A3: Current assets/Sales | B3: 0.15
A4: Current liabilities/Sales | B4: 0.08
A5: Net fixed assets/Sales | B5: 0.77
A6: Costs of goods sold/Sales | B6: 0.5
A7: Sales, admin and expenses | B7: 200
A8: Depreciation rate | B8: 0.1
A9: Interest rate on debt | B9: 0.1
A10: Interest earned on cash & marketable securities | B10: 0.08
A11: Tax rate | B11: 0.4
A12: Dividend payout ratio | B12: 0.4
A14: Year | B14: 0 | C14: 1 | D14: 2 | E14: 3 | F14: 4 | G14: 5
A15: Income statement
A16: Sales | B16: 1000 | C16: =B16*(1+$B$2) -> 1100 | D16: =C16*(1+$B$2) -> 1210 | E16: 1331 | F16: 1464.1 | G16: 1610.51 | H16: =getformula(G16) -> <-- =F16*(1+$B$2)
A17: Costs of goods sold | B17: =-B16*$B$6 -> -500 | C17: =-C16*$B$6 -> -550 | D17: =-D16*$B$6 -> -605 | E17: -665.5 | F17: -732.05 | G17: -805.255 | H17: =getformula(G17) -> <-- =-G16*$B$6
A18: Sales, admin and expenses | C18: =-$B$7 -> -200 | D18: =-$B$7 -> -200 | E18: -200 | F18: -200 | G18: -200 | H18: <-- =-$B$7
A19: Interest payments on debt | B19: -32 | C19: =-$B$9*(C38+B38)/2 -> -32 | D19: =-$B$9*(D38+C38)/2 -> -32 | E19: -32 | F19: -32 | G19: -32 | H19: <-- =-$B$9*(G38+F38)/2
A20: Interest earned on cash & marketable securities | B20: 6 | C20: =$B$10*(C29+B29)/2 -> 6.025717703 | D20: =$B$10*(D29+C29)/2 -> 5.425083703 | E20: 5.126487142 | F20: 5.141169185 | G20: 5.47783115 | H20: <-- =$B$10*(G29+F29)/2
A21: Depreciation | B21: -100 | C21: =-$B$8*(C32+B32)/2 -> -116.6842105 | D21: =-$B$8*(D32+C32)/2 -> -137.4772853 | E21: -161.3101575 | F21: -188.5879109 | G21: -219.7667804 | H21: <-- =-$B$8*(G32+F32)/2
A22: Profit before tax | B22: =SUM(B16:B21) -> 374 | C22: =SUM(C16:C21) -> 207.3415072 | D22: 240.9477984 | E22: 277.3163297 | F22: 316.6032583 | G22: 358.9660507 | H22: <-- =SUM(G16:G21)
A23: Taxes | B23: =-B22*$B$11 -> -149.6 | C23: =-C22*$B$11 -> -82.93660287 | D23: -96.37911935 | E23: -110.9265319 | F23: -126.6413033 | G23: -143.5864203 | H23: <-- =-G22*$B$11
A24: Profit after tax | B24: =SUM(B22:B23) -> 224.4 | C24: =SUM(C22:C23) -> 124.4049043 | D24: 144.568679 | E24: 166.3897978 | F24: 189.961955 | G24: 215.3796304 | H24: <-- =SUM(G22:G23)
A25: Dividends | B25: =-$B$12*B24 -> -89.76 | C25: =-$B$12*C24 -> -49.76196172 | D25: -57.82747161 | E25: -66.55591912 | F25: -75.98478199 | G25: -86.15185217 | H25: <-- =-$B$12*G24
A26: Retained earnings | B26: =SUM(B24:B25) -> 134.64 | C26: =SUM(C24:C25) -> 74.64294258 | D26: 86.74120742 | E26: 99.83387869 | F26: 113.977173 | G26: 129.2277783 | H26: <-- =SUM(G24:G25)
A28: Balance sheet | B28: 0 | C28: 1 | D28: 2 | E28: 3 | F28: 4 | G28: 5
A29: Cash and marketable securities | B29: 80 | C29: =C41-C34-C30 -> 70.64294258 | D29: =D41-D34-D30 -> 64.98415 | E29: 63.17802869 | F29: 65.35120168 | G29: 71.59457994 | H29: <-- =G41-G34-G30
A30: Current assets | B30: =B16*$B$3 -> 150 | C30: =C16*$B$3 -> 165 | D30: 181.5 | E30: 199.65 | F30: 219.615 | G30: 241.5765 | H30: <-- =G16*$B$3
A31: Fixed assets
A32: Fixed assets at cost | B32: =B34-B33 -> 1070 | C32: =C34-C33 -> 1263.684211 | D32: 1485.861496 | E32: 1740.341653 | F32: 2031.416564 | G32: 2363.919045 | H32: <-- =G34-G33
A33: Accumulated depreciation | B33: =-300 -> -300 | C33: =B33+C21 -> -416.6842105 | D33: =C33+D21 -> -554.1614958 | E33: -715.4716533 | F33: -904.0595642 | G33: -1123.826345 | H33: <-- =F33+G21
A34: Net fixed assets | B34: =B16*$B$5 -> 770 | C34: =C16*$B$5 -> 847 | D34: 931.7 | E34: 1024.87 | F34: 1127.357 | G34: 1240.0927 | H34: <-- =G16*$B$5
A35: Total assets | B35: =B29+B30+B34 -> 1000 | C35: =C29+C30+C34 -> 1082.642943 | D35: =D29+D30+D34 -> 1178.18415 | E35: 1287.698029 | F35: 1412.323202 | G35: 1553.26378 | H35: <-- =G29+G30+G34
A37: Current liabilities | B37: =B16*$B$4 -> 80 | C37: =C16*$B$4 -> 88 | D37: 96.8 | E37: 106.48 | F37: 117.128 | G37: 128.8408 | H37: <-- =G16*$B$4
A38: Debt | B38: 320 | C38: 320 | D38: 320 | E38: 320 | F38: 320 | G38: 320 | H38: <-- 320
A39: Stock | B39: 450 | C39: 450 | D39: 450 | E39: 450 | F39: 450 | G39: 450 | H39: <-- 450
A40: Accumulated retained earnings | B40: 150 | C40: =B40+C26 -> 224.6429426 | D40: =C40+D26 -> 311.38415 | E40: 411.2180287 | F40: 525.1952017 | G40: 654.4229799 | H40: <-- =F40+G26
A41: Total liabilities and equity | B41: =SUM(B37:B40) -> 1000 | C41: =SUM(C37:C40) -> 1082.642943 | D41: 1178.18415 | E41: 1287.698029 | F41: 1412.323202 | G41: 1553.26378 | H41: <-- =SUM(G37:G40)
A44: Year | B44: 0 | C44: 1 | D44: 2 | E44: 3 | F44: 4 | G44: 5
A45: Free Cash Flow
A46: PAT | C46: =C24 -> 124.4049043 | D46: =D24 -> 144.568679 | E46: 166.3897978 | F46: 189.961955 | G46: 215.3796304 | H46: <-- =G24
A47: Add back depreciation | C47: =-C21 -> 116.6842105 | D47: =-D21 -> 137.4772853 | E47: 161.3101575 | F47: 188.5879109 | G47: 219.7667804 | H47: <-- =-G21
A48: Minus NWC
A49: Minus increase in CA | C49: =-(C30-B30) -> -15 | D49: =-(D30-C30) -> -16.5 | E49: -18.15 | F49: -19.965 | G49: -21.9615 | H49: <-- =-(G30-F30)
A50: Add back increase in CL | C50: =C37-B37 -> 8 | D50: =D37-C37 -> 8.8 | E50: 9.68 | F50: 10.648 | G50: 11.7128 | H50: <-- =G37-F37
A51: Subtract CAPEX | C51: =-(C32-B32) -> -193.6842105 | D51: =-(D32-C32) -> -222.1772853 | E51: -254.4801575 | F51: -291.0749109 | G51: -332.5024804 | H51: <-- =-(G32-F32)
A52: Add back after tax interest on debt | C52: =-B19*(1-$B$11) -> 19.2 | D52: =-C19*(1-$B$11) -> 19.2 | E52: 19.2 | F52: 19.2 | G52: 19.2 | H52: <-- =-F19*(1-$B$11)
A53: Subtract after tax interest on cash and mkt secr. | C53: =-C20*(1-$B$11) -> -3.615430622 | D53: =-D20*(1-$B$11) -> -3.255050222 | E53: -3.075892285 | F53: -3.084701511 | G53: -3.28669869 | H53: <-- =-G20*(1-$B$11)
A54: Free Cash Flow | C54: =SUM(C46:C53) -> 55.98947368 | D54: =SUM(D46:D53) -> 68.11362881 | E54: 80.87390553 | F54: 94.27325348 | G54: 108.3085317 | H54: <-- =SUM(G46:G53)
A57: WACC | B57: 0.2
A58: Long-term FCF growth | B58: 0.05
A60: Year | B60: 0 | C60: 1 | D60: 2 | E60: 3 | F60: 4 | G60: 5
A61: FCF | C61: =C54 -> 55.98947368 | D61: =D54 -> 68.11362881 | E61: 80.87390553 | F61: 94.27325348 | G61: 108.3085317 | H61: <-- =G54
A62: Terminal value | G62: =G61*(1+B58)/(B57-B58) -> 758.1597222 | H62: <-- =G61*(1+B58)/(B57-B58)
A63: Total | C63: =SUM(C61:C62) -> 55.98947368 | D63: =SUM(D61:D62) -> 68.11362881 | E63: 80.87390553 | F63: 94.27325348 | G63: 866.4682539 | H63: <-- =SUM(G61:G62)
A65: Enterprise value: PV of FCFs and terminal value | B65: =NPV(B57,C63:G63) -> 534.4387801 | C65: =getformula(B65) -> <-- =NPV(B57,C63:G63)
A66: Add back initial cash | B66: =B29 -> 80 | C66: =getformula(B66) -> <-- =B29
A67: Asset value | B67: =SUM(B65:B66) -> 614.4387801 | C67: <-- =SUM(B65:B66)
A68: Subtract year 0 debt | B68: =-B38 -> -320 | C68: <-- =-B38
A69: Imputed equity value | B69: =SUM(B67:B68) -> 294.4387801 | C69: <-- =SUM(B67:B68)
C72: =IF(B69>=0,B69,"NMF") -> 294.4387801 | D72: =getformula(C72) -> <-- =IF(B69>=0,B69,"NMF")
B73: 0 | C73: 990.8893974
B74: 50 | C74: 816.776743
B75: 100 | C75: 642.6640887
B76: 150 | C76: 468.5514344
B77: 200 | C77: 294.4387801
B78: 250 | C78: 120.3261258
B79: 300 | C79: NMF
B80: 350 | C80: NMF
B81: 400 | C81: NMF
B82: 450 | C82: NMF
B83: 500 | C83: NMF
B84: 550 | C84: NMF
B85: 600 | C85: NMF

Sheet EX3
A1: CHAPTER 5 TEMPLATE--JUST TO SAVE YOU SOME TYPING
A2: Sales growth | B2: 0.1
A3: Current assets/Sales | B3: 0.15
A4: Current liabilities/Sales | B4: 0.08
A5: Fixed assets at cost/Sales | B5: 1
A6: Costs of goods sold/Sales | B6: 0.5
A7: Depreciation rate | B7: 0.1
A8: Interest rate on debt | B8: 0.1
A9: Interest paid on cash & marketable securities | B9: 0.08
A10: Tax rate | B10: 0.4
A11: Dividend payout ratio | B11: 0.4
A13: Year | B13: 0 | C13: 1 | D13: 2 | E13: 3 | F13: 4 | G13: 5
A14: Income statement
A15: Sales | B15: 1000 | C15: =B15*(1+$B$2) -> 1100 | D15: =C15*(1+$B$2) -> 1210 | E15: 1331 | F15: 1464.1 | G15: 1610.51 | H15: =getformula(G15) -> <-- =F15*(1+$B$2)
A16: Costs of goods sold | B16: =-B15*$B$6 -> -500 | C16: =-C15*$B$6 -> -550 | D16: -605 | E16: -665.5 | F16: -732.05 | G16: -805.255 | H16: =getformula(G16) -> <-- =-G15*$B$6
A17: Interest payments on debt | B17: =-32 -> -32 | C17: =-$B$8*(C36+B36)/2 -> -32 | D17: =-$B$8*(D36+C36)/2 -> -32 | E17: -32 | F17: -32 | G17: -32 | H17: <-- =-$B$8*(G36+F36)/2
A18: Interest earned on cash & marketable securities | B18: 6 | C18: =$B$9*(C27+B27)/2 -> 15.37824675 | D18: =$B$9*(D27+C27)/2 -> 31.3073189 | E18: 46.11832822 | F18: 62.84525177 | G18: 81.69238656 | H18: <-- =$B$9*(G27+F27)/2
A19: Depreciation | B19: -100 | C19: =-$B$7*(C30+B30)/2 -> -108.5 | D19: =-$B$7*(D30+C30)/2 -> -115.5 | E19: -127.05 | F19: -139.755 | G19: -153.7305 | H19: <-- =-$B$7*(G30+F30)/2
A20: Profit before tax | B20: =SUM(B15:B19) -> 374 | C20: =SUM(C15:C19) -> 424.8782468 | D20: 488.8073189 | E20: 552.5683282 | F20: 623.1402518 | G20: 701.2168866 | H20: <-- =SUM(G15:G19)
A21: Taxes | B21: =-$B$10*B20 -> -149.6 | C21: =-$B$10*C20 -> -169.9512987 | D21: -195.5229276 | E21: -221.0273313 | F21: -249.2561007 | G21: -280.4867546 | H21: <-- =-$B$10*G20
A22: Profit after tax | B22: =SUM(B20:B21) -> 224.4 | C22: =SUM(C20:C21) -> 254.9269481 | D22: 293.2843913 | E22: 331.5409969 | F22: 373.8841511 | G22: 420.7301319 | H22: <-- =SUM(G20:G21)
A23: Dividends | B23: =-$B$11*B22 -> -89.76 | C23: =-$B$11*C22 -> -101.9707792 | D23: -117.3137565 | E23: -132.6163988 | F23: -149.5536604 | G23: -168.2920528 | H23: <-- =-$B$11*G22
A24: Retained earnings | B24: =SUM(B22:B23) -> 134.64 | C24: =SUM(C22:C23) -> 152.9561688 | D24: 175.9706348 | E24: 198.9245982 | F24: 224.3304906 | G24: 252.4380792 | H24: <-- =SUM(G22:G23)
H25: <--
A26: Balance sheet | B26: 0 | C26: 1 | D26: 2 | E26: 3 | F26: 4 | G26: 5 | H26: <-- 5
A27: Cash and marketable securities | B27: 80 | C27: =C39-C32-C28 -> 304.4561688 | D27: =D39-D32-D28 -> 478.2268036 | E27: 674.7314018 | F27: 896.3998924 | G27: 1145.909772 | H27: <-- =G39-G32-G28
A28: Current assets | B28: =B15*$B$3 -> 150 | C28: =C15*$B$3 -> 165 | D28: 181.5 | E28: 199.65 | F28: 219.615 | G28: 241.5765 | H28: <-- =G15*$B$3
A29: Fixed assets | H29: <--
A30: Fixed assets at cost | B30: 1070 | C30: =C15*$B$5 -> 1100 | D30: 1210 | E30: 1331 | F30: 1464.1 | G30: 1610.51 | H30: <-- =G15*$B$5
A31: Accumulated depreciation | B31: -300 | C31: =B31+C19 -> -408.5 | D31: =C31+D19 -> -524 | E31: -651.05 | F31: -790.805 | G31: -944.5355 | H31: <-- =F31+G19
A32: Net fixed assets | B32: =SUM(B30:B31) -> 770 | C32: =SUM(C30:C31) -> 691.5 | D32: 686 | E32: 679.95 | F32: 673.295 | G32: 665.9745 | H32: <-- =SUM(G30:G31)
A33: Total assets | B33: =B32+B28+B27 -> 1000 | C33: =C32+C28+C27 -> 1160.956169 | D33: 1345.726804 | E33: 1554.331402 | F33: 1789.309892 | G33: 2053.460772 | H33: <-- =G32+G28+G27
A35: Current liabilities | B35: =B15*$B$4 -> 80 | C35: =C15*$B$4 -> 88 | D35: 96.8 | E35: 106.48 | F35: 117.128 | G35: 128.8408 | H35: <-- =G15*$B$4
A36: Debt | B36: 320 | C36: 320 | D36: 320 | E36: 320 | F36: 320 | G36: 320 | H36: <-- 320
A37: Stock | B37: 450 | C37: 450 | D37: 450 | E37: 450 | F37: 450 | G37: 450 | H37: <-- 450
A38: Accumulated retained earnings | B38: 150 | C38: =B38+C24 -> 302.9561688 | D38: =C38+D24 -> 478.9268036 | E38: 677.8514018 | F38: 902.1818924 | G38: 1154.619972 | H38: <-- =F38+G24
A39: Total liabilities and equity | B39: =SUM(B35:B38) -> 1000 | C39: =SUM(C35:C38) -> 1160.956169 | D39: 1345.726804 | E39: 1554.331402 | F39: 1789.309892 | G39: 2053.460772 | H39: <-- =SUM(G35:G38)
H41: <--
A42: Year | B42: 0 | C42: 1 | D42: 2 | E42: 3 | F42: 4 | G42: 5 | H42: <-- 5
A43: Free Cash Flow | H43: <--
A44: PAT | H44: <--
A45: Add back depreciation | H45: <--
A46: Minus NWC | H46: <--
A47: Minus increase in CA | H47: <--
A48: Add back increase in CL | H48: <--
A49: Subtract CAPEX | H49: <--
A50: Add back net interest after taxes | H50: <--
A51: Free Cash Flow | H51: <--
H52: <--
H53: <--
A54: WACC | H54: <--
A55: Long-term FCF growth | H55: <--
H56: <--
A57: Year | B57: 0 | C57: 1 | D57: 2 | E57: 3 | F57: 4 | G57: 5 | H57: <-- 5
A58: FCF | H58: <--
A59: Terminal value | H59: <--
A60: Total | H60: <--
H61: <--
A62: Enterprise value: PV of FCFs and terminal value | H62: <--
A63: Add back initial cash | H63: <--
A64: Asset value | H64: <--
A65: Subtract year 0 debt | H65: <--
A66: Imputed equity value | H66: <--
H67: <--
H68: <--
H69: <--
H70: <--
H71: <--
H72: <--
H73: <--
H74: <--
H75: <--
H76: <--
H77: <--
H78: <--
H79: <--
H80: =getformula(G80) -> <--
H81: <--
H82: <--
H83: <--
H84: <--
H85: <--
H86: <--
H87: <--
H88: <--
H89: <--
H90: <--
H91: <--
H92: <--
H93: <--
H94: <--
H95: <--
H96: <--
H97: <--
H98: <--
H99: <--
H100: <--
H101: <--
H102: <--

Sheet EX4
A1: CHAPTER 5 TEMPLATE--JUST TO SAVE YOU SOME TYPING
A2: Sales growth | B2: 0.1
A3: Current assets/Sales | B3: 0.15
A4: Current liabilities/Sales | B4: 0.08
A5: Costs of goods sold/Sales | B5: 0.5
A6: Depreciation rate | B6: 0.1
A7: Interest rate on debt | B7: 0.1
A8: Interest paid on cash & marketable securities | B8: 0.08
A9: Tax rate | B9: 0.4
A10: Dividend payout ratio | B10: 0.4
A12: Year | B12: 0 | C12: 1 | D12: 2 | E12: 3 | F12: 4 | G12: 5
A13: Income statement
A14: Sales | B14: 1000 | C14: =B14*(1+$B$2) -> 1100 | D14: =C14*(1+$B$2) -> 1210 | E14: 1331 | F14: 1464.1 | G14: 1610.51 | H14: =getformula(G14) -> <-- =F14*(1+$B$2)
A15: Costs of goods sold | B15: =-B14*$B$5 -> -500 | C15: =-C14*$B$5 -> -550 | D15: -605 | E15: -665.5 | F15: -732.05 | G15: -805.255 | H15: <-- =-G14*$B$5
A16: Interest payments on debt | B16: -32 | C16: =-$B$7*(C35+B35)/2 -> -32 | D16: =-$B$7*(D35+C35)/2 -> -32 | E16: -32 | F16: -32 | G16: -32 | H16: <-- =-$B$7*(G35+F35)/2
A17: Interest earned on cash & marketable securities | B17: 6 | C17: =$B$8*(C26+B26)/2 -> 15.37824675 | D17: =$B$8*(D26+C26)/2 -> 31.34660461 | E17: 46.67080735 | F17: 64.62732282 | G17: 85.33233696 | H17: <-- =$B$8*(G26+F26)/2
A18: Depreciation | B18: -100 | C18: =-$B$6*(C29+B29)/2 -> -108.5 | D18: =-$B$6*(D29+C29)/2 -> -115.45 | E18: -126.345 | F18: -137.459 | G18: -148.9844 | H18: <-- =-$B$6*(G29+F29)/2
A19: Profit before tax | B19: =SUM(B14:B18) -> 374 | C19: =SUM(C14:C18) -> 424.8782468 | D19: 488.8966046 | E19: 553.8258073 | F19: 627.2183228 | G19: 709.602937 | H19: <-- =SUM(G14:G18)
A20: Taxes | B20: =-B19*$B$9 -> -149.6 | C20: =-C19*$B$9 -> -169.9512987 | D20: -195.5586418 | E20: -221.5303229 | F20: -250.8873291 | G20: -283.8411748 | H20: <-- =-G19*$B$9
A21: Profit after tax | B21: =SUM(B19:B20) -> 224.4 | C21: =SUM(C19:C20) -> 254.9269481 | D21: 293.3379628 | E21: 332.2954844 | F21: 376.3309937 | G21: 425.7617622 | H21: <-- =SUM(G19:G20)
A22: Dividends | B22: =-$B$10*B21 -> -89.76 | C22: =-$B$10*C21 -> -101.9707792 | D22: -117.3351851 | E22: -132.9181938 | F22: -150.5323975 | G22: -170.3047049 | H22: <-- =-$B$10*G21
A23: Retained earnings | B23: =SUM(B21:B22) -> 134.64 | C23: =SUM(C21:C22) -> 152.9561688 | D23: 176.0027777 | E23: 199.3772906 | F23: 225.7985962 | G23: 255.4570573 | H23: <-- =SUM(G21:G22)
H24: <--
A25: Balance sheet | B25: 0 | C25: 1 | D25: 2 | E25: 3 | F25: 4 | G25: 5 | H25: <-- 5
A26: Cash and marketable securities | B26: 80 | C26: =C38-C31-C27 -> 304.4561688 | D26: =D38-D31-D27 -> 479.2089465 | E26: 687.5612371 | F26: 928.1218334 | G26: 1205.186591 | H26: <-- =G38-G31-G27
A27: Current assets | B27: =B14*$B$3 -> 150 | C27: =C14*$B$3 -> 165 | D27: 181.5 | E27: 199.65 | F27: 219.615 | G27: 241.5765 | H27: <-- =G14*$B$3
A28: Fixed assets | H28: <--
A29: Fixed assets at cost | B29: 1070 | C29: =IF(C14<=1200,100%*C14,IF(C14<=1400,1200+90%*(C14-1200),1380+80%*(C14-1400))) -> 1100 | D29: =IF(D14<=1200,100%*D14,IF(D14<=1400,1200+90%*(D14-1200),1380+80%*(D14-1400))) -> 1209 | E29: =IF(E14<=1200,100%*E14,IF(E14<=1400,1200+90%*(E14-1200),1380+80%*(E14-1400))) -> 1317.9 | F29: 1431.28 | G29: 1548.408 | H29: <-- =IF(G14<=1200,100%*G14,IF(G14<=1400,1200+90%*(G14-1200),1380+80%*(G14-1400)))
A30: Accumulated depreciation | B30: -300 | C30: =B30+C18 -> -408.5 | D30: =C30+D18 -> -523.95 | E30: -650.295 | F30: -787.754 | G30: -936.7384 | H30: <-- =F30+G18
A31: Net fixed assets | B31: =SUM(B29:B30) -> 770 | C31: =SUM(C29:C30) -> 691.5 | D31: 685.05 | E31: 667.605 | F31: 643.526 | G31: 611.6696 | H31: <-- =SUM(G29:G30)
A32: Total assets | B32: =B31+B27+B26 -> 1000 | C32: =C31+C27+C26 -> 1160.956169 | D32: 1345.758946 | E32: 1554.816237 | F32: =F31+F27+F26 -> 1791.262833 | G32: 2058.432691 | H32: <-- =G31+G27+G26
A34: Current liabilities | B34: =B14*$B$4 -> 80 | C34: =C14*$B$4 -> 88 | D34: 96.8 | E34: 106.48 | F34: 117.128 | G34: 128.8408 | H34: <-- =G14*$B$4
A35: Debt | B35: 320 | C35: 320 | D35: 320 | E35: 320 | F35: 320 | G35: 320 | H35: <-- 320
A36: Stock | B36: 450 | C36: 450 | D36: 450 | E36: 450 | F36: 450 | G36: 450 | H36: <-- 450
A37: Accumulated retained earnings | B37: 150 | C37: =B37+C23 -> 302.9561688 | D37: =C37+D23 -> 478.9589465 | E37: 678.3362371 | F37: 904.1348334 | G37: 1159.591891 | H37: <-- =F37+G23
A38: Total liabilities and equity | B38: =SUM(B34:B37) -> 1000 | C38: =SUM(C34:C37) -> 1160.956169 | D38: 1345.758946 | E38: 1554.816237 | F38: 1791.262833 | G38: 2058.432691 | H38: <-- =SUM(G34:G37)
H39: <--
H40: <--
A41: Year | B41: 0 | C41: 1 | D41: 2 | E41: 3 | F41: 4 | G41: 5 | H41: <-- 5
A42: Free Cash Flow | H42: <--
A43: PAT | H43: <--
A44: Add back depreciation | H44: <--
A45: Minus NWC | H45: <--
A46: Minus increase in CA | H46: <--
A47: Add back increase in CL | H47: <--
A48: Subtract CAPEX | H48: <--
A49: Add back net interest after taxes | H49: <--
A50: Free Cash Flow | H50: <--
H51: <--
H52: <--
A53: WACC | H53: <--
A54: Long-term FCF growth | H54: <--
H55: <--
A56: Year | B56: 0 | C56: 1 | D56: 2 | E56: 3 | F56: 4 | G56: 5 | H56: <-- 5
A57: FCF | H57: <--
A58: Terminal value | H58: <--
A59: Total | H59: <--
H60: <--
A61: Enterprise value: PV of FCFs and terminal value | H61: <--
A62: Add back initial cash | H62: <--
A63: Asset value | H63: <--
A64: Subtract year 0 debt | H64: <--
A65: Imputed equity value | H65: <--
H66: <--
H67: <--
H68: <--
H69: <--
H70: <--
H71: <--
H72: <--
H73: <--
H74: <--
H75: <--
H76: <--
H77: <--
H78: =getformula(G78) -> <--
H79: <--
H80: <--
H81: <--
H82: <--
H83: <--
H84: <--
H85: <--
H86: <--
H87: <--
H88: <--
H89: <--
H90: <--
H91: <--
H92: <--
H93: <--
H94: <--
H95: <--
H96: <--
H97: <--
H98: <--
H99: <--
H100: <--
H101: <--
H102: <--
H103: <--
H104: <--
H105: <--
H106: <--
H107: <--
H108: <--
H109: <--

Sheet EX5
A1: CHAPTER 5 TEMPLATE--JUST TO SAVE YOU SOME TYPING
A2: Sales growth | B2: 0.2
A3: Current assets/Sales | B3: 0.2
A4: Current liabilities/Sales | B4: 0.08
A5: Net fixed assets/Sales | B5: 0.8
A6: Costs of goods sold/Sales | B6: 0.5
A7: Depreciation rate | B7: 0.1
A8: Interest rate on debt | B8: 0.1
A9: Interest paid on cash & marketable securities | B9: 0.08
A10: Tax rate | B10: 0.4
A11: Year 1 dividend per share | B11: 0.15
A12: Number of shares | B12: 1000
A13: Dividend annual growth rate | B13: 0.12
A15: Year | B15: 0 | C15: 1 | D15: 2 | E15: 3 | F15: 4 | G15: 5
A16: Income statement
A17: Sales | B17: 1000 | C17: =B17*(1+$B$2) -> 1200 | D17: =C17*(1+$B$2) -> 1440 | E17: 1728 | F17: 2073.6 | G17: 2488.32 | H17: =getformula(G17) -> <-- =F17*(1+$B$2)
A18: Costs of goods sold | C18: =-C17*$B$6 -> -600 | D18: =-D17*$B$6 -> -720 | E18: -864 | F18: -1036.8 | G18: -1244.16 | H18: =getformula(G18) -> <-- =-G17*$B$6
A19: Interest payments on debt | C19: =-$B$8*(C38+B38)/2 -> -40 | D19: =-$B$8*(D38+C38)/2 -> -43.32120165 | E19: -50.7337489 | F19: -59.17872119 | G19: -68.10009139 | H19: <-- =-$B$8*(G38+F38)/2
A20: Interest earned on cash & marketable securities | C20: =$B$9*(C29+B29)/2 -> 3.584987058 | D20: =$B$9*(D29+C29)/2 -> 0.3849870578 | E20: 0 | F20: 0 | G20: 0 | H20: <-- =$B$9*(G29+F29)/2
A21: Depreciation | C21: =-$B$7*(C32+B32)/2 -> -124.2105263 | D21: =-$B$7*(D32+C32)/2 -> -155.8116343 | E21: -194.444438 | F21: -241.5901683 | G21: -299.034186 | H21: <-- =-$B$7*(G32+F32)/2
A22: Profit before tax | C22: =SUM(C17:C21) -> 439.3744607 | D22: =SUM(D17:D21) -> 521.2521511 | E22: 618.8218131 | F22: 736.0311105 | G22: 877.0257226 | H22: <-- =SUM(G17:G21)
A23: Taxes | C23: =-C22*$B$10 -> -175.7497843 | D23: =-D22*$B$10 -> -208.5008604 | E23: -247.5287253 | F23: -294.4124442 | G23: -350.810289 | H23: <-- =-G22*$B$10
A24: Profit after tax | C24: =SUM(C22:C23) -> 263.6246764 | D24: =SUM(D22:D23) -> 312.7512906 | E24: 371.2930879 | F24: 441.6186663 | G24: 526.2154336 | H24: <-- =SUM(G22:G23)
A25: Dividends | C25: =-$B$11*$B$12*(1+$B$13)^(C15-1) -> -150 | D25: =-$B$11*$B$12*(1+$B$13)^(D15-1) -> -168 | E25: -188.16 | F25: -210.7392 | G25: -236.027904 | H25: <-- =-$B$11*$B$12*(1+$B$13)^(G15-1)
A26: Retained earnings | C26: =SUM(C24:C25) -> 113.6246764 | D26: =SUM(D24:D25) -> 144.7512906 | E26: 183.1330879 | F26: 230.8794663 | G26: 290.1875296 | H26: <-- =SUM(G24:G25)
H27: <--
A28: Balance sheet | B28: 0 | C28: 1 | D28: 2 | E28: 3 | F28: 4 | G28: 5 | H28: <-- 5
A29: Cash and marketable securities | B29: 80 | C29: =C41-C34-C30 -> 9.624676445 | D29: =D41-D34-D30 -> 0 | E29: 0 | F29: 0 | G29: 0 | H29: <-- =G41-G34-G30
A30: Current assets | B30: 200 | C30: =C17*$B$3 -> 240 | D30: =D17*$B$3 -> 288 | E30: 345.6 | F30: 414.72 | G30: 497.664 | H30: <-- =G17*$B$3
A31: Fixed assets | H31: <--
A32: Fixed assets at cost | B32: 1100 | C32: =C34-C33 -> 1384.210526 | D32: =D34-D33 -> 1732.022161 | E32: 2156.866599 | F32: 2674.936767 | G32: 3305.746953 | H32: <-- =G34-G33
A33: Accumulated depreciation | B33: -300 | C33: =B33+C21 -> -424.2105263 | D33: =C33+D21 -> -580.0221607 | E33: -774.4665986 | F33: -1016.056767 | G33: -1315.090953 | H33: <-- =F33+G21
A34: Net fixed assets | B34: 800 | C34: =C17*$B$5 -> 960 | D34: =D17*$B$5 -> 1152 | E34: 1382.4 | F34: 1658.88 | G34: 1990.656 | H34: <-- =G17*$B$5
A35: Total assets | B35: 1080 | C35: =C34+C30+C29 -> 1209.624676 | D35: =D34+D30+D29 -> 1440 | E35: 1728 | F35: 2073.6 | G35: 2488.32 | H35: <-- =G34+G30+G29
H36: <--
A37: Current liabilities | B37: 80 | C37: =C17*$B$4 -> 96 | D37: =D17*$B$4 -> 115.2 | E37: 138.24 | F37: 165.888 | G37: 199.0656 | H37: <-- =G17*$B$4
A38: Debt | B38: 400 | C38: =MAX(B38,C30+C34-C37-C39-C40) -> 400 | D38: =MAX(C38,D30+D34-D37-D39-D40) -> 466.4240329 | E38: =MAX(D38,E30+E34-E37-E39-E40) -> 548.250945 | F38: 635.3234787 | G38: 726.6783491 | H38: <-- =MAX(F38,G30+G34-G37-G39-G40)
A39: Stock | B39: 450 | C39: 450 | D39: 450 | E39: 450 | F39: 450 | G39: 450 | H39: <-- 450
A40: Accumulated retained earnings | B40: 150 | C40: =B40+C26 -> 263.6246764 | D40: =C40+D26 -> 408.3759671 | E40: 591.509055 | F40: 822.3885213 | G40: 1112.576051 | H40: <-- =F40+G26
A41: Total liabilities and equity | B41: 1080 | C41: =SUM(C37:C40) -> 1209.624676 | D41: =SUM(D37:D40) -> 1440 | E41: 1728 | F41: 2073.6 | G41: 2488.32 | H41: <-- =SUM(G37:G40)
H42: <--
H43: <--
A44: Year | B44: 0 | C44: 1 | D44: 2 | E44: 3 | F44: 4 | G44: 5 | H44: <-- 5
A45: Free Cash Flow | H45: <--
A46: PAT | H46: <--
A47: Add back depreciation | H47: <--
A48: Minus NWC | H48: <--
A49: Minus increase in CA | H49: <--
A50: Add back increase in CL | H50: <--
A51: Subtract CAPEX | H51: <--
A52: Add back net interest after taxes | H52: <--
A53: Free Cash Flow | H53: <--
H54: <--
H55: <--
A56: WACC | H56: <--
A57: Long-term FCF growth | H57: <--
H58: <--
A59: Year | B59: 0 | C59: 1 | D59: 2 | E59: 3 | F59: 4 | G59: 5 | H59: <-- 5
A60: FCF | H60: <--
A61: Terminal value | H61: <--
A62: Total | H62: <--
H63: <--
A64: Enterprise value: PV of FCFs and terminal value | H64: <--
A65: Add back initial cash | H65: <--
A66: Asset value | H66: <--
A67: Subtract year 0 debt | H67: <--
A68: Imputed equity value | H68: <--
H69: <--
H70: <--
H71: <--
H72: <--
H73: <--

Sheet EX6
A1: CHAPTER 5 TEMPLATE--JUST TO SAVE YOU SOME TYPING
A2: Sales growth | B2: 0.2
A3: Current assets/Sales | B3: 0.2
A4: Current liabilities/Sales | B4: 0.08
A5: Net fixed assets/Sales | B5: 0.8
A6: Costs of goods sold/Sales | B6: 0.5
A7: Depreciation rate | B7: 0.1
A8: Interest rate on debt | B8: 0.1
A9: Interest paid on cash & marketable securities | B9: 0.08
A10: Tax rate | B10: 0.4
A11: Dividend payout ratio | B11: 0.5
A13: Year | B13: 0 | C13: 1 | D13: 2 | E13: 3 | F13: 4 | G13: 5
A14: Income statement
A15: Sales | B15: 1000 | C15: =B15*(1+$B$2) -> 1200 | D15: =C15*(1+$B$2) -> 1440 | E15: 1728 | F15: 2073.6 | G15: 2488.32 | H15: =getformula(G15) -> <-- =F15*(1+$B$2)
A16: Costs of goods sold | C16: =-C15*$B$6 -> -600 | D16: =-D15*$B$6 -> -720 | E16: -864 | F16: -1036.8 | G16: -1244.16 | H16: =getformula(G16) -> <-- =-G15*$B$6
A17: Interest payments on debt | C17: =-$B$8*(C36+B36)/2 -> -40 | D17: =-$B$8*(D36+C36)/2 -> -43.03928175 | E17: -50.00327925 | F17: -58.7486777 | G17: -69.48182049 | H17: <-- =-$B$8*(G36+F36)/2
A18: Interest earned on cash & marketable securities | C18: =$B$9*(C27+B27)/2 -> 4.32132964 | D18: =$B$9*(D27+C27)/2 -> 2.12132964 | E18: 2 | F18: 2 | G18: 2 | H18: <-- =$B$9*(G27+F27)/2
A19: Depreciation | C19: =-$B$7*(C30+B30)/2 -> -124.2105263 | D19: =-$B$7*(D30+C30)/2 -> -155.8116343 | E19: -194.444438 | F19: -241.5901683 | G19: -299.034186 | H19: <-- =-$B$7*(G30+F30)/2
A20: Profit before tax | C20: =SUM(C15:C19) -> 440.1108033 | D20: =SUM(D15:D19) -> 523.2704135 | E20: 621.5522828 | F20: 738.461154 | G20: 877.6439935 | H20: <-- =SUM(G15:G19)
A21: Taxes | C21: =-C20*$B$10 -> -176.0443213 | D21: =-D20*$B$10 -> -209.3081654 | E21: -248.6209131 | F21: -295.3844616 | G21: -351.0575974 | H21: <-- =-G20*$B$10
A22: Profit after tax | C22: =SUM(C20:C21) -> 264.066482 | D22: =SUM(D20:D21) -> 313.9622481 | E22: 372.9313697 | F22: 443.0766924 | G22: 526.5863961 | H22: <-- =SUM(G20:G21)
A23: Dividends | C23: =-C22*$B$11 -> -132.033241 | D23: =-D22*$B$11 -> -156.9811241 | E23: -186.4656848 | F23: -221.5383462 | G23: -263.2931981 | H23: <-- =-G22*$B$11
A24: Retained earnings | C24: =SUM(C22:C23) -> 132.033241 | D24: =SUM(D22:D23) -> 156.9811241 | E24: 186.4656848 | F24: 221.5383462 | G24: 263.2931981 | H24: <-- =SUM(G22:G23)
H25: <--
A26: Balance sheet | B26: 0 | C26: 1 | D26: 2 | E26: 3 | F26: 4 | G26: 5 | H26: <-- 5
A27: Cash and marketable securities | B27: 80 | C27: =C39-C32-C28 -> 28.033241 | D27: =D39-D32-D28 -> 25 | E27: 25 | F27: 25 | G27: 25 | H27: <-- =G39-G32-G28
A28: Current assets | B28: 200 | C28: =C15*$B$3 -> 240 | D28: =D15*$B$3 -> 288 | E28: 345.6 | F28: 414.72 | G28: 497.664 | H28: <-- =G15*$B$3
A29: Fixed assets | H29: <--
A30: Fixed assets at cost | B30: 1100 | C30: =C32-C31 -> 1384.210526 | D30: =D32-D31 -> 1732.022161 | E30: 2156.866599 | F30: 2674.936767 | G30: 3305.746953 | H30: <-- =G32-G31
A31: Accumulated depreciation | B31: -300 | C31: =B31+C19 -> -424.2105263 | D31: =C31+D19 -> -580.0221607 | E31: -774.4665986 | F31: -1016.056767 | G31: -1315.090953 | H31: <-- =F31+G19
A32: Net fixed assets | B32: 800 | C32: =C15*$B$5 -> 960 | D32: =D15*$B$5 -> 1152 | E32: 1382.4 | F32: 1658.88 | G32: 1990.656 | H32: <-- =G15*$B$5
A33: Total assets | B33: 1080 | C33: =C32+C28+C27 -> 1228.033241 | D33: =D32+D28+D27 -> 1465 | E33: 1753 | F33: 2098.6 | G33: 2513.32 | H33: <-- =G32+G28+G27
H34: <--
A35: Current liabilities | B35: 80 | C35: =C15*$B$4 -> 96 | D35: =D15*$B$4 -> 115.2 | E35: 138.24 | F35: 165.888 | G35: 199.0656 | H35: <-- =G15*$B$4
A36: Debt | B36: 400 | C36: =MAX(B36,C28+C32-C35-C37-C38+25) -> 400 | D36: =MAX(C36,D28+D32-D35-D37-D38+25) -> 460.7856349 | E36: 539.2799501 | F36: 635.6936039 | G36: 753.9428058 | H36: <-- =MAX(F36,G28+G32-G35-G37-G38+25)
A37: Stock | B37: 450 | C37: 450 | D37: 450 | E37: 450 | F37: 450 | G37: 450 | H37: <-- 450
A38: Accumulated retained earnings | B38: 150 | C38: =B38+C24 -> 282.033241 | D38: =C38+D24 -> 439.0143651 | E38: 625.4800499 | F38: 847.0183961 | G38: 1110.311594 | H38: <-- =F38+G24
A39: Total liabilities and equity | B39: 1080 | C39: =SUM(C35:C38) -> 1228.033241 | D39: =SUM(D35:D38) -> 1465 | E39: 1753 | F39: 2098.6 | G39: 2513.32 | H39: <-- =SUM(G35:G38)
H40: <--
H41: <--
A42: Year | B42: 0 | C42: 1 | D42: 2 | E42: 3 | F42: 4 | G42: 5 | H42: <-- 5
A43: Free Cash Flow | H43: <--
A44: PAT | H44: <--
A45: Add back depreciation | H45: <--
A46: Minus NWC | H46: <--
A47: Minus increase in CA | H47: <--
A48: Add back increase in CL | H48: <--
A49: Subtract CAPEX | H49: <--
A50: Add back net interest after taxes | H50: <--
A51: Free Cash Flow | H51: <--
H52: <--
H53: <--
A54: WACC | H54: <--
A55: Long-term FCF growth | H55: <--
H56: <--
A57: Year | B57: 0 | C57: 1 | D57: 2 | E57: 3 | F57: 4 | G57: 5 | H57: <-- 5
A58: FCF | H58: <--
A59: Terminal value | H59: <--
A60: Total | H60: <--
H61: <--
A62: Enterprise value: PV of FCFs and terminal value | H62: <--
A63: Add back initial cash | H63: <--
A64: Asset value | H64: <--
A65: Subtract year 0 debt | H65: <--
A66: Imputed equity value | H66: <--
H67: <--
H68: <--
H69: <--
H70: <--
H71: <--
